bitfinex/quotes_BTCUSD_20251124
["timestamp","ask_amount","ask_price","bid_price","bid_amount"]
[1763953365150,0.77493899,87700.0,87684.0,0.061132]
[1763953365389,0.5,87709.0,87685.0,0.03291]
[1763953365607,0.323,87701.0,87686.0,0.0076472]
[1763953365811,0.323,87699.0,87686.0,0.0076472]
[1763953366258,0.01769779,87699.0,87686.0,0.0076472]
[1763953366431,0.34069779,87699.0,87687.0,0.03291]
[1763953366632,0.323,87699.0,87687.0,0.03291]
[1763953366834,0.34053037,87699.0,87687.0,0.03291]
[1763953368973,0.34053037,87699.0,87686.0,0.0076472]
[1763953369374,0.34053037,87699.0,87687.0,0.03291]
[1763953369603,0.34053037,87699.0,87688.0,0.01471209]
[1763953369806,0.34053037,87699.0,87698.0,0.03661]
[1763953370034,0.01753037,87699.0,87698.0,0.03661]
[1763953370238,0.5,87719.0,87698.0,0.06952]
[1763953370413,2.0,87717.0,87698.0,0.06952]
[1763953370616,2.0,87717.0,87699.0,0.13108571]
[1763953370812,0.323,87716.0,87700.0,0.03291]
[1763953371110,0.00011778,87716.0,87700.0,0.03291]
[1763953376054,2.0,87717.0,87700.0,0.03291]
[1763953376268,0.08503114,87718.0,87700.0,0.03302778]
[1763953376641,2.0,87718.0,87700.0,0.03302778]
[1763953378139,2.0,87718.0,87700.0,0.00011778]
[1763953378337,0.77493899,87710.0,87700.0,0.00011778]
[1763953378960,0.03675,87701.0,87700.0,0.00011778]
[1763953379951,0.06726,87701.0,87700.0,0.00011778]
[1763953380189,0.06653031,87701.0,87700.0,0.00011778]
[1763953380591,0.01557,87701.0,87700.0,0.00011778]
[1763953380906,0.01557,87706.0,87700.0,0.00011778]
[1763953381510,0.323,87709.0,87705.0,0.02127]
[1763953381710,0.323,87709.0,87708.0,0.02127]
[1763953383423,0.08471627,87718.0,87708.0,0.02127]
[1763953383640,0.323,87718.0,87708.0,0.05395]
[1763953384047,0.79050899,87720.0,87708.0,0.05395]
[1763953384313,0.34059422,87719.0,87708.0,0.05395]
[1763953384904,0.001,87718.0,87708.0,0.05395]
[1763953385128,0.34059422,87719.0,87708.0,0.05395]
[1763953385354,0.0004,87730.0,87718.0,0.02278]
[1763953385566,0.001,87719.0,87709.0,0.14051371]
[1763953385773,0.001,87718.0,87710.0,0.02965137]
[1763953386064,0.001,87718.0,87710.0,0.04828]
[1763953386065,0.002,87718.0,87710.0,0.04828]
[1763953386269,0.001,87718.0,87710.0,0.04828]
[1763953386409,0.001,87718.0,87717.0,0.02278]
[1763953387382,0.01804038,87724.0,87717.0,0.02278]
[1763953387631,0.01804038,87724.0,87718.0,0.01466837]
[1763953387840,0.33906,87729.0,87710.0,0.0156]
[1763953387841,0.02246,87718.0,87710.0,0.0156]
[1763953388051,0.02246,87711.0,87688.0,0.00724]
[1763953388254,0.02246,87710.0,87699.0,0.0156]
[1763953388649,0.01606,87709.0,87699.0,0.0156]
[1763953388863,0.01606,87709.0,87700.0,0.00589456]
[1763953389412,0.37319,87709.0,87700.0,0.00589456]
[1763953389611,0.37319,87709.0,87700.0,0.00011778]
[1763953389964,0.33906,87709.0,87700.0,0.00011778]
[1763953393157,0.18579679,87709.0,87700.0,0.00011778]
[1763953394359,0.77493899,87710.0,87700.0,0.00011778]
[1763953396190,0.01606,87716.0,87709.0,0.03838]
[1763953396390,0.02117637,87715.0,87709.0,0.0156]
[1763953396590,0.2472,87722.0,87710.0,0.03268]
[1763953396591,0.323,87719.0,87710.0,0.03268]
[1763953396796,0.02117567,87718.0,87714.0,0.02278]
[1763953396997,0.02117567,87717.0,87715.0,0.007106]
[1763953397203,0.2472,87722.0,87715.0,0.007106]
[1763953397400,0.00845,87716.0,87715.0,0.007106]
[1763953397730,0.00845,87716.0,87709.0,0.0156]
[1763953399517,0.323,87719.0,87709.0,0.0156]
[1763953399720,0.02116852,87718.0,87709.0,0.0156]
[1763953399920,0.02116852,87717.0,87709.0,0.0156]
[1763953400150,0.323,87719.0,87709.0,0.0156]
[1763953400328,0.323,87721.0,87718.0,0.02278]
[1763953400569,0.02117114,87720.0,87710.0,0.03268]
[1763953400769,0.34417114,87719.0,87709.0,0.0156]
[1763953400970,0.02117114,87718.0,87709.0,0.0156]
[1763953401295,0.02246,87710.0,87700.0,0.00011778]
[1763953401517,0.01606,87701.0,87700.0,0.00011778]
[1763953401721,0.03852,87701.0,87700.0,0.00011778]
[1763953401924,0.6448657,87701.0,87700.0,0.00011778]
[1763953402122,0.41681813,87701.0,87700.0,0.00011778]
[1763953402323,0.6448657,87701.0,87700.0,0.00011778]
[1763953402915,0.41681813,87701.0,87700.0,0.00011778]
[1763953403122,0.44398166,87701.0,87700.0,0.00011778]
[1763953403325,0.34416813,87701.0,87700.0,0.00011778]
[1763953403967,0.323,87701.0,87700.0,0.00011778]
[1763953404181,0.323,87701.0,87700.0,0.02289778]
[1763953404385,0.323,87701.0,87700.0,0.05557778]
[1763953404593,0.323,87701.0,87700.0,0.06269556]
[1763953404744,0.323,87701.0,87700.0,0.03001556]
[1763953404926,0.323,87701.0,87700.0,0.00723556]
[1763953405164,0.37959,87701.0,87700.0,0.00011778]
[1763953406143,0.40073043,87701.0,87700.0,0.00011778]
[1763953406463,0.628778,87701.0,87700.0,0.00011778]
[1763953406666,0.49195414,87701.0,87700.0,0.00011778]
[1763953407293,0.72000171,87701.0,87700.0,0.00011778]
[1763953407972,0.72100171,87701.0,87700.0,0.00011778]
[1763953408406,0.47181371,87701.0,87700.0,0.00011778]
[1763953408775,0.43768371,87701.0,87700.0,0.00011778]
[1763953409314,0.47181371,87701.0,87700.0,0.00011778]
[1763953409757,0.324,87701.0,87700.0,0.00011778]
[1763953410871,0.324,87701.0,87700.0,0.05557778]
[1763953411092,0.324,87701.0,87700.0,0.06269556]
[1763953411310,0.001,87701.0,87700.0,0.06269556]
[1763953412775,0.323,87721.0,87700.0,0.06269556]
[1763953412986,0.323,87721.0,87707.0,0.09122371]
[1763953413417,0.323,87721.0,87708.0,0.03268]
[1763953413632,0.323,87721.0,87709.0,0.01239037]
[1763953414270,0.323,87721.0,87720.0,0.01597]
[1763953414486,0.35671693,87729.0,87720.0,0.01597]
[1763953414923,0.35671693,87729.0,87709.0,0.01239037]
[1763953414924,0.02188,87721.0,87709.0,0.01239037]
[1763953415133,0.02188,87721.0,87706.0,0.01597]
[1763953415354,0.323,87719.0,87706.0,0.01597]
[1763953415801,0.35487,87719.0,87700.0,0.00723556]
[1763953416018,0.78338899,87720.0,87700.0,0.00723556]
[1763953416019,0.03731,87707.0,87700.0,0.00723556]
[1763953416232,0.03731,87707.0,87700.0,0.00011778]
[1763953416690,0.01543,87707.0,87700.0,0.00011778]
[1763953418640,0.00067622,87717.0,87706.0,0.02066]
[1763953418841,0.00845,87720.0,87700.0,0.00011778]
[1763953418842,0.09122371,87716.0,87700.0,0.00011778]
[1763953419047,0.001,87707.0,87700.0,0.00011778]
[1763953419197,0.77493899,87710.0,87700.0,0.00011778]
[1763953419923,0.77493899,87710.0,87701.0,0.03144]
[1763953420286,0.09122371,87716.0,87701.0,0.03144]
[1763953420490,0.323,87710.0,87701.0,0.03144]
[1763953420690,0.323,87710.0,87700.0,0.00011778]
[1763953421116,0.35487,87710.0,87700.0,0.00011778]
[1763953421318,0.02188,87701.0,87700.0,0.00011778]
[1763953421678,0.05375,87701.0,87700.0,0.00011778]
[1763953422080,0.60479757,87701.0,87700.0,0.00011778]
[1763953422295,0.37675,87701.0,87700.0,0.00011778]
[1763953422761,0.60579757,87701.0,87700.0,0.00011778]
[1763953422984,0.37775,87701.0,87700.0,0.00011778]
[1763953423408,0.60579757,87701.0,87700.0,0.00011778]
[1763953423549,0.37775,87701.0,87700.0,0.00011778]
[1763953423889,0.69174342,87701.0,87700.0,0.00011778]
[1763953424038,0.70029433,87701.0,87700.0,0.00011778]
[1763953424941,0.47224676,87701.0,87700.0,0.00011778]
[1763953427557,0.43182585,87701.0,87700.0,0.00011778]
[1763953428798,0.43106585,87701.0,87700.0,0.00011778]
[1763953429598,0.40994585,87701.0,87700.0,0.00011778]
[1763953429825,0.43106585,87701.0,87700.0,0.00011778]
[1763953430655,0.43022335,87701.0,87700.0,0.00011778]
[1763953430861,0.46409335,87701.0,87700.0,0.00011778]
[1763953431883,0.69214092,87701.0,87700.0,0.00011778]
[1763953432057,0.55531706,87701.0,87700.0,0.00011778]
[1763953433215,0.323,87694.0,87685.0,0.01691533]
[1763953433417,0.3230716,87694.0,87685.0,0.01691533]
[1763953433805,0.3230716,87694.0,87685.0,0.02424688]
[1763953434406,0.3230716,87694.0,87693.0,0.02133]
[1763953434610,7.16e-05,87694.0,87693.0,0.02133]
[1763953435975,7.16e-05,87694.0,87689.0,0.03359]
[1763953436176,7.16e-05,87694.0,87693.0,0.02133]
[1763953437287,7.16e-05,87694.0,87693.0,0.03828]
[1763953437683,7.16e-05,87694.0,87693.0,0.045467]
[1763953438244,7.16e-05,87694.0,87693.0,0.079057]
[1763953439079,7.16e-05,87694.0,87693.0,0.080057]
[1763953439590,7.16e-05,87694.0,87693.0,0.07287]
[1763953439747,7.16e-05,87694.0,87693.0,0.03928]
[1763953440089,7.16e-05,87694.0,87693.0,0.07287]
[1763953441527,7.16e-05,87694.0,87693.0,0.01795]
[1763953441683,7.16e-05,87694.0,87693.0,0.03928]
[1763953441889,7.16e-05,87694.0,87693.0,0.07878252]
[1763953443524,7.16e-05,87694.0,87693.0,0.08876252]
[1763953443727,0.01765693,87729.0,87698.0,0.00998]
[1763953444067,0.00032058,87726.0,87725.0,0.12815371]
[1763953444201,0.00032058,87726.0,87725.0,0.14096908]
[1763953444412,0.00032058,87726.0,87725.0,0.17337908]
[1763953445478,0.00032058,87726.0,87725.0,0.17537908]
[1763953447045,0.1891848,87739.0,87726.0,0.03241]
[1763953447247,0.00039263,87739.0,87729.0,0.02076]
[1763953447455,0.00039263,87739.0,87730.0,0.01753791]
[1763953447658,0.00024889,87734.0,87730.0,0.01753791]
[1763953448070,0.01674251,87734.0,87730.0,0.01753791]
[1763953448248,0.01674251,87734.0,87725.0,0.01717]
[1763953448502,0.01674251,87734.0,87716.0,0.03241]
[1763953448503,0.01139834,87732.0,87716.0,0.03241]
[1763953448652,0.52788728,87726.0,87716.0,0.03241]
[1763953448859,0.52788728,87726.0,87711.0,0.12363371]
[1763953449066,0.52788728,87726.0,87697.0,0.01617]
[1763953449067,0.00803,87715.0,87703.0,0.03241]
[1763953449272,0.323,87712.0,87697.0,0.01617]
[1763953449430,0.323,87712.0,87703.0,0.09122371]
[1763953449637,0.52788728,87720.0,87711.0,0.02076]
[1763953449833,0.52788728,87720.0,87718.0,0.02076]
[1763953450076,0.52788728,87728.0,87719.0,0.03693]
[1763953450688,0.00803,87737.0,87719.0,0.06934]
[1763953450890,2.0,87729.0,87720.0,0.006934]
[1763953451262,0.001,87728.0,87720.0,0.006934]
[1763953451465,0.56018728,87730.0,87712.0,0.01617]
[1763953451678,0.52788728,87722.0,87712.0,0.01624165]
[1763953452884,0.52788728,87722.0,87713.0,0.03241]
[1763953453291,0.323,87729.0,87713.0,0.03241]
[1763953453494,2.0,87728.0,87713.0,0.03241]
[1763953454018,0.323,87729.0,87713.0,0.03241]
[1763953454243,0.323,87729.0,87728.0,0.02076]
[1763953454450,0.001,87729.0,87714.0,0.00714548]
[1763953454656,0.001,87729.0,87714.0,0.03955548]
[1763953454887,0.324,87729.0,87714.0,0.03955548]
[1763953455023,0.324,87729.0,87715.0,0.00630371]
[1763953455216,0.324,87729.0,87717.0,0.09122371]
[1763953455425,0.324,87729.0,87728.0,0.02076]
[1763953455666,0.001,87729.0,87718.0,0.03241]
[1763953455867,0.324,87729.0,87712.0,0.01624165]
[1763953456094,0.52788728,87722.0,87712.0,0.01624165]
[1763953457079,0.323,87721.0,87712.0,0.04865165]
[1763953457378,0.323,87721.0,87717.0,0.09122371]
[1763953457548,0.323,87721.0,87720.0,0.02076]
[1763953457905,0.323,87721.0,87720.0,0.05317]
[1763953458244,0.323,87729.0,87720.0,0.05317]
[1763953458451,0.323,87729.0,87721.0,0.03241]
[1763953458698,0.01674251,87734.0,87733.0,0.02076]
[1763953459091,0.01674251,87734.0,87733.0,0.05317]
[1763953459750,0.00024889,87734.0,87733.0,0.05317]
[1763953461311,0.00024889,87734.0,87733.0,0.05417]
[1763953462530,0.00024889,87734.0,87733.0,0.05517]
[1763953465129,0.00024889,87734.0,87733.0,0.06241]
[1763953465327,0.00024889,87734.0,87733.0,0.068651]
[1763953465831,0.00024889,87734.0,87733.0,0.05517]
[1763953466053,0.00024889,87734.0,87733.0,0.06241]
[1763953466741,0.00024889,87734.0,87733.0,0.05517]
[1763953467344,0.00024889,87734.0,87733.0,0.002]
[1763953468689,0.00024889,87734.0,87733.0,0.001]
[1763953468890,0.02251889,87734.0,87733.0,0.001]
[1763953469091,0.02251889,87734.0,87715.0,0.00724]
[1763953469299,0.323,87724.0,87715.0,0.00724]
[1763953469497,0.323,87724.0,87712.0,0.01624165]
[1763953469786,0.323,87724.0,87723.0,0.02076]
[1763953470431,0.323,87732.0,87723.0,0.02076]
[1763953470888,0.0323,87731.0,87712.0,0.01624165]
[1763953471088,0.323,87721.0,87712.0,0.01624165]
[1763953471603,0.323,87721.0,87720.0,0.02076]
[1763953472104,0.323,87729.0,87720.0,0.05317]
[1763953472402,0.323,87729.0,87720.0,0.02076]
[1763953474270,0.323,87729.0,87721.0,0.03301]
[1763953475113,0.00024889,87734.0,87728.0,0.02115]
[1763953475327,0.00024889,87734.0,87714.0,0.03301]
[1763953475500,0.00024889,87734.0,87715.0,0.03066461]
[1763953475926,0.01828745,87740.0,87716.0,0.03301]
[1763953475927,0.52788728,87730.0,87716.0,0.03301]
[1763953476061,0.52788728,87730.0,87717.0,0.02280059]
[1763953476589,0.52788728,87730.0,87718.0,0.03301]
[1763953476791,0.52788728,87730.0,87719.0,0.00971523]
[1763953477170,0.52788728,87730.0,87719.0,0.04272523]
[1763953478082,0.01828745,87740.0,87712.0,0.03250956]
[1763953478083,0.01828745,87740.0,87729.0,0.02115]
[1763953478318,0.01828745,87740.0,87720.0,0.01617]
[1763953478319,0.00813,87730.0,87720.0,0.01617]
[1763953478516,0.55782728,87730.0,87720.0,0.01617]
[1763953480401,0.55882728,87730.0,87720.0,0.01617]
[1763953480840,0.00813,87721.0,87712.0,0.03250956]
[1763953481052,0.00813,87721.0,87713.0,0.00727596]
[1763953481253,0.33113,87721.0,87713.0,0.00727596]
[1763953482110,0.33113,87721.0,87712.0,0.01624165]
[1763953482313,0.00813,87721.0,87712.0,0.01624165]
[1763953482946,0.00813,87721.0,87712.0,7.165e-05]
[1763953484193,0.00813,87730.0,87720.0,0.02115]
[1763953484408,0.323,87729.0,87721.0,0.02115]
[1763953484609,0.41422371,87729.0,87721.0,0.02115]
[1763953484781,0.41422371,87729.0,87712.0,0.03308165]
[1763953485784,0.324,87729.0,87712.0,0.03308165]
[1763953486044,0.323,87729.0,87713.0,0.09122371]
[1763953486278,0.324,87729.0,87728.0,0.02216]
[1763953487155,0.323,87737.0,87728.0,0.02216]
[1763953487304,0.001,87729.0,87728.0,0.02216]
[1763953487921,0.001,87729.0,87728.0,0.05542]
[1763953489030,0.323,87739.0,87728.0,0.05542]
[1763953489237,0.323,87739.0,87728.0,0.02216]
[1763953490325,0.323,87739.0,87729.0,0.01607]
[1763953490459,0.323,87739.0,87730.0,0.007149]
[1763953490872,0.323,87739.0,87730.0,0.040409]
[1763953491501,0.323,87739.0,87738.0,0.01607]
[1763953491705,0.323,87739.0,87738.0,0.03823]
[1763953491866,0.01828856,87740.0,87730.0,0.040409]
[1763953492076,0.323,87739.0,87731.0,0.0072549]
[1763953492484,0.323,87739.0,87729.0,0.01607]
[1763953493321,0.323,87739.0,87725.0,0.01607]
[1763953493322,0.00855,87730.0,87725.0,0.01607]
[1763953493721,0.02163,87726.0,87717.0,0.01607]
[1763953493927,0.34463,87726.0,87717.0,0.01607]
[1763953495803,0.02976,87718.0,87702.0,0.00724]
[1763953496031,0.00813,87718.0,87710.0,0.01607]
[1763953496547,0.323,87727.0,87717.0,0.02216]
[1763953496956,0.323,87727.0,87718.0,0.0078293]
[1763953497161,0.323,87727.0,87710.0,0.01607]
[1763953497583,0.323,87729.0,87710.0,0.01607]
[1763953497780,0.323,87727.0,87710.0,0.01607]
[1763953498733,0.323,87729.0,87710.0,0.01607]
[1763953498934,0.323,87721.0,87710.0,0.01607]
[1763953500082,0.02492,87729.0,87720.0,0.02216]
[1763953500083,0.323,87729.0,87720.0,0.02216]
[1763953500378,0.323,87727.0,87721.0,0.02216]
[1763953501198,0.323,87729.0,87721.0,0.02216]
[1763953501387,0.323,87729.0,87726.0,0.01607]
[1763953501593,0.323,87729.0,87712.0,7.165e-05]
[1763953501972,0.323,87729.0,87713.0,0.03326]
[1763953502176,0.00813,87731.0,87713.0,0.03326]
[1763953502395,0.323,87729.0,87713.0,0.03326]
[1763953503613,0.00813,87731.0,87728.0,0.01555]
[1763953503818,0.323,87729.0,87714.0,0.01922161]
[1763953504019,0.323,87729.0,87715.0,0.00686233]
[1763953504223,0.323,87729.0,87728.0,0.01555]
[1763953504434,0.323,87729.0,87715.0,0.03875233]
[1763953505883,0.78260386,87738.0,87715.0,0.03875233]
[1763953505884,0.01523,87735.0,87728.0,0.01555]
[1763953506089,0.01523,87735.0,87715.0,0.03875233]
[1763953506301,0.77405386,87725.0,87715.0,0.00686233]
[1763953506506,0.77405386,87725.0,87712.0,7.165e-05]
[1763953506909,0.77405386,87725.0,87712.0,0.03196165]
[1763953507112,8.38e-05,87734.0,87724.0,0.02137]
[1763953507320,0.323,87733.0,87724.0,0.02137]
[1763953508130,0.323,87733.0,87717.0,0.03189]
[1763953508399,0.323,87733.0,87712.0,0.03196165]
[1763953510280,0.85997924,87730.0,87712.0,0.03196165]
[1763953510685,0.33823,87735.0,87712.0,0.03196165]
[1763953510686,2.25793637,87713.0,87712.0,7.165e-05]
[1763953510886,2.58093637,87713.0,87712.0,7.165e-05]
[1763953511109,0.0114038,87690.0,87675.0,0.01555]
[1763953511352,0.0114051,87680.0,87675.0,0.0219206]
[1763953511553,0.22809773,87682.0,87675.0,0.0156216]
[1763953511707,0.323,87684.0,87675.0,0.0156216]
[1763953512087,0.01140471,87683.0,87675.0,0.0156216]
[1763953512293,0.323,87684.0,87675.0,0.0156216]
[1763953512521,0.01140471,87683.0,87675.0,0.0156216]
[1763953512943,0.01140471,87683.0,87675.0,0.0166216]
[1763953513101,0.23949922,87683.0,87675.0,0.0166216]
[1763953513304,0.23950206,87682.0,87675.0,0.0166216]
[1763953513646,0.23950206,87682.0,87675.0,0.0010716]
[1763953513647,0.02168,87676.0,87675.0,0.0010716]
[1763953513984,0.57279259,87676.0,87675.0,0.0010716]
[1763953514388,0.57279259,87676.0,87675.0,7.16e-05]
[1763953514389,0.59619259,87676.0,87675.0,7.16e-05]
[1763953514591,2.59619259,87676.0,87675.0,7.16e-05]
[1763953514798,2.60560887,87676.0,87675.0,0.0010716]
[1763953515182,2.60560887,87676.0,87675.0,7.16e-05]
[1763953515385,2.60560887,87676.0,87675.0,0.0020716]
[1763953515771,2.60560887,87676.0,87675.0,7.16e-05]
[1763953516241,2.35581628,87676.0,87675.0,7.16e-05]
[1763953516432,2.58564887,87676.0,87675.0,7.16e-05]
[1763953517302,2.60666245,87676.0,87675.0,7.16e-05]
[1763953518172,2.60766245,87676.0,87675.0,7.16e-05]
[1763953518759,2.35614986,87676.0,87675.0,7.16e-05]
[1763953518929,2.0,87683.0,87675.0,7.16e-05]
[1763953519131,0.001,87676.0,87675.0,7.16e-05]
[1763953519330,0.002,87676.0,87675.0,7.16e-05]
[1763953519563,0.001,87676.0,87675.0,0.0533316]
[1763953519721,2.0,87699.0,87675.0,0.08303127]
[1763953519927,0.00942922,87706.0,87676.0,0.03189]
[1763953519928,0.85997924,87690.0,87676.0,0.03189]
[1763953520137,0.323,87689.0,87676.0,0.03189]
[1763953521215,0.323,87689.0,87675.0,7.16e-05]
[1763953521429,0.323,87685.0,87675.0,7.16e-05]
[1763953521632,0.323,87678.0,87675.0,7.16e-05]
[1763953521835,0.323,87682.0,87677.0,0.02137]
[1763953522245,0.323,87689.0,87681.0,0.02137]
[1763953522453,0.323,87689.0,87687.0,0.02137]
[1763953522687,0.323,87689.0,87688.0,0.02137]
[1763953523183,0.08761778,87699.0,87688.0,0.02137]
[1763953523184,2.0,87698.0,87688.0,0.05326]
[1763953523684,2.0,87698.0,87688.0,0.02137]
[1763953523925,2.0,87698.0,87688.0,0.02237]
[1763953524121,2.0,87698.0,87697.0,0.01555]
[1763953525077,0.323,87697.0,87682.0,0.01555]
[1763953525281,0.323,87691.0,87682.0,0.01555]
[1763953525705,0.0114038,87690.0,87682.0,0.01555]
[1763953525909,0.323,87689.0,87682.0,0.01555]
[1763953526356,0.323,87689.0,87688.0,0.02137]
[1763953526940,0.323,87691.0,87688.0,0.060141]
[1763953527142,0.323,87691.0,87690.0,0.02137]
[1763953527381,0.323,87691.0,87690.0,0.05326]
[1763953528038,0.323,87697.0,87690.0,0.05326]
[1763953528245,0.323,87698.0,87691.0,0.03189]
[1763953528585,0.323,87698.0,87697.0,0.03692]
[1763953528910,0.323,87698.0,87697.0,0.06881]
[1763953529112,0.323,87707.0,87697.0,0.06881]
[1763953529333,0.323,87703.0,87698.0,0.03189]
[1763953529560,0.323,87703.0,87699.0,0.00748241]
[1763953529715,0.323,87703.0,87702.0,0.02137]
[1763953530316,0.323,87703.0,87697.0,0.01555]
[1763953530579,0.323,87707.0,87697.0,0.01555]
[1763953530731,0.323,87703.0,87699.0,0.001]
[1763953531069,0.41422371,87703.0,87702.0,0.001]
[1763953531213,0.41422371,87703.0,87699.0,0.001]
[1763953531848,0.09122371,87703.0,87699.0,0.001]
[1763953532290,0.09122371,87703.0,87690.0,0.01555]
[1763953532506,0.09122371,87703.0,87697.0,0.001]
[1763953532805,0.323,87699.0,87697.0,0.001]
[1763953533007,0.323,87699.0,87683.0,0.03189]
[1763953533008,0.00237,87698.0,87683.0,0.03189]
[1763953533240,0.00237,87698.0,87683.0,7.16e-05]
[1763953533241,0.01140289,87697.0,87683.0,7.16e-05]
[1763953533410,0.323,87688.0,87683.0,7.16e-05]
[1763953533658,0.33440432,87686.0,87683.0,7.16e-05]
[1763953533829,0.323,87686.0,87683.0,7.16e-05]
[1763953534632,0.323,87686.0,87683.0,0.0159016]
[1763953535159,0.323,87687.0,87683.0,0.0169016]
[1763953535701,0.323,87687.0,87686.0,0.02109]
[1763953536091,0.323,87687.0,87686.0,0.02804416]
[1763953536284,0.85997924,87693.0,87686.0,0.02804416]
[1763953536505,0.85997924,87693.0,87686.0,0.03850416]
[1763953536506,0.323,87690.0,87686.0,0.03850416]
[1763953536915,0.323,87690.0,87689.0,0.02109]
[1763953537365,0.323,87690.0,87689.0,0.05264]
[1763953537570,0.85997924,87710.0,87689.0,0.06018958]
[1763953537744,2.323,87708.0,87707.0,0.01583]
[1763953537945,2.02108063,87708.0,87707.0,0.01583]
[1763953538151,0.34409673,87708.0,87707.0,0.01583]
[1763953538379,2.34409673,87708.0,87707.0,0.06847]
[1763953538576,2.323,87708.0,87707.0,0.075317]
[1763953539164,2.34411113,87708.0,87701.0,0.01583]
[1763953539362,0.85997924,87710.0,87701.0,0.01583]
[1763953539363,0.323,87706.0,87701.0,0.01583]
[1763953539866,0.41422371,87704.0,87695.0,0.01583]
[1763953540252,0.3441228,87703.0,87696.0,0.03155]
[1763953540452,0.02112227,87702.0,87701.0,0.001]
[1763953540724,0.17229561,87703.0,87701.0,0.001]
[1763953541322,2.0,87709.0,87702.0,0.02109]
[1763953541538,2.0,87709.0,87702.0,0.05264]
[1763953541725,2.0,87709.0,87708.0,0.02109]
[1763953542519,2.323,87709.0,87708.0,0.02109]
[1763953542725,2.323,87709.0,87704.0,0.00141325]
[1763953542726,0.323,87708.0,87704.0,0.00141325]
[1763953542962,0.323,87710.0,87704.0,0.00141325]
[1763953543111,2.0,87707.0,87704.0,0.00141325]
[1763953543331,0.323,87710.0,87704.0,0.00141325]
[1763953543530,0.323,87706.0,87704.0,0.00141325]
[1763953543752,0.00263,87705.0,87704.0,0.00141325]
[1763953543987,2.55629717,87705.0,87704.0,0.00141325]
[1763953545014,2.55629717,87705.0,87704.0,0.00241325]
[1763953545769,2.55629717,87705.0,87704.0,0.00141325]
[1763953546110,2.32563,87705.0,87704.0,0.00141325]
[1763953546435,2.55629717,87705.0,87704.0,0.00141325]
[1763953546680,2.56574081,87705.0,87704.0,0.00141325]
[1763953547081,2.55629717,87705.0,87704.0,0.00141325]
[1763953548751,2.80349717,87705.0,87704.0,0.00141325]
[1763953549852,2.80086717,87705.0,87704.0,0.00141325]
[1763953550031,2.80349717,87705.0,87704.0,0.00141325]
[1763953550753,2.80086717,87705.0,87704.0,0.00141325]
[1763953551113,2.5702,87705.0,87704.0,0.00141325]
[1763953551902,2.57283,87705.0,87704.0,0.00141325]
[1763953552335,2.59398565,87705.0,87704.0,0.00141325]
[1763953555431,2.82465282,87705.0,87704.0,0.00141325]
[1763953555654,2.83409694,87705.0,87704.0,0.00141325]
[1763953556847,2.83509694,87705.0,87704.0,0.00141325]
[1763953557476,2.58964873,87705.0,87704.0,0.00141325]
[1763953557701,2.58020461,87705.0,87704.0,0.00141325]
[1763953557913,2.57757461,87705.0,87704.0,0.00141325]
[1763953558147,2.57857461,87705.0,87704.0,0.00141325]
[1763953558793,2.57757461,87705.0,87704.0,0.00141325]
[1763953558958,2.57657461,87705.0,87704.0,0.00141325]
[1763953559263,2.57757461,87705.0,87704.0,0.00141325]
[1763953559706,2.34953744,87705.0,87704.0,0.00141325]
[1763953560133,2.34690744,87705.0,87704.0,0.00141325]
[1763953560340,1.77670744,87705.0,87704.0,0.02275325]
[1763953560528,0.02115565,87705.0,87704.0,0.06187358]
[1763953560724,2.0,87712.0,87704.0,0.06187358]
[1763953560928,0.001,87705.0,87704.0,0.00842358]
[1763953561125,0.001,87705.0,87704.0,0.00141325]
[1763953561363,0.001,87705.0,87704.0,0.02275325]
[1763953561535,0.001,87705.0,87704.0,0.00141325]
[1763953562181,0.323,87708.0,87704.0,0.05486325]
[1763953562395,2.0,87718.0,87707.0,0.02134]
[1763953562603,0.33440068,87714.0,87707.0,0.02134]
[1763953562819,0.23940927,87716.0,87707.0,0.02134]
[1763953562820,0.323,87710.0,87707.0,0.02134]
[1763953563242,0.323,87710.0,87704.0,0.00141325]
[1763953563449,0.323,87710.0,87704.0,0.00241325]
[1763953564066,0.33440055,87715.0,87704.0,0.00141325]
[1763953564273,0.323,87711.0,87704.0,0.00141325]
[1763953565836,2.0,87712.0,87704.0,0.00141325]
[1763953566042,0.323,87711.0,87704.0,0.00141325]
[1763953566787,0.17243107,87711.0,87704.0,0.00141325]
[1763953567371,2.0,87713.0,87704.0,0.00141325]
[1763953567576,0.01140094,87712.0,87704.0,0.00141325]
[1763953567744,0.32241088,87705.0,87704.0,0.00141325]
[1763953568166,0.01140081,87713.0,87704.0,0.00141325]
[1763953568433,0.09437371,87705.0,87704.0,0.00141325]
[1763953568594,2.32241088,87705.0,87704.0,0.00141325]
[1763953568956,2.75638897,87705.0,87704.0,0.00141325]
[1763953569194,2.76683416,87705.0,87704.0,0.00141325]
[1763953569979,2.76583416,87705.0,87704.0,0.00141325]
[1763953570186,2.76683416,87705.0,87704.0,0.00141325]
[1763953570769,2.75738897,87705.0,87704.0,0.00141325]
[1763953571501,0.55109178,87684.0,87683.0,7.16e-05]
[1763953571780,0.64546549,87684.0,87683.0,7.16e-05]
[1763953571948,0.41737371,87684.0,87683.0,7.16e-05]
[1763953572152,0.64546549,87684.0,87683.0,7.16e-05]
[1763953572362,0.64861549,87684.0,87683.0,7.16e-05]
[1763953572767,0.42052371,87684.0,87683.0,7.16e-05]
[1763953573124,0.41737371,87684.0,87683.0,7.16e-05]
[1763953575140,0.32615,87684.0,87683.0,7.16e-05]
[1763953575870,0.55739178,87684.0,87683.0,7.16e-05]
[1763953576108,0.3293,87684.0,87683.0,7.16e-05]
[1763953576317,0.32615,87684.0,87683.0,7.16e-05]
[1763953577240,0.32615,87684.0,87683.0,0.00072547]
[1763953577241,0.323,87684.0,87683.0,0.00072547]
[1763953578403,0.55109178,87684.0,87683.0,0.00072547]
[1763953578902,0.323,87684.0,87683.0,0.00072547]
[1763953579809,0.32615,87684.0,87683.0,0.00072547]
[1763953580150,2.0,87689.0,87683.0,0.00072547]
[1763953580358,2.01140393,87689.0,87683.0,7.16e-05]